bitfinex/quotes_SOLUSD_20230103
["timestamp","ask_amount","ask_price","bid_price","bid_amount"]
[1672777115297,30.0,13.033,13.023,23.2658]
[1672777115705,57.61,13.032,13.023,23.2658]
[1672777117615,87.6,13.033,13.023,23.2658]
[1672777118039,6.04686155,13.031,13.023,23.2658]
[1672777118777,87.6,13.033,13.023,23.2658]
[1672777122040,6.05099829,13.032,13.023,23.2658]
[1672777122251,57.61,13.031,13.023,23.2658]
[1672777122995,6.05099829,13.032,13.023,23.2658]
[1672777126976,57.61,13.031,13.023,23.2658]
[1672777127931,6.04272418,13.03,13.023,23.2658]
[1672777128565,57.62,13.029,13.023,23.2658]
[1672777131832,6.03444754,13.028,13.023,23.2658]
[1672777132876,57.61,13.031,13.023,23.2658]
[1672777135822,6.04272418,13.03,13.023,23.2658]
[1672777138228,57.62,13.029,13.023,23.2658]
[1672777139722,6.03444754,13.028,13.023,23.2658]
[1672777140878,57.61,13.031,13.023,23.2658]
[1672777143828,6.04272418,13.03,13.023,23.2658]
[1672777146981,22.8925,13.032,13.023,23.2658]
[1672777147822,80.5025,13.032,13.023,23.2658]
[1672777148126,6.04686155,13.031,13.023,23.2658]
[1672777148445,57.61,13.03,13.023,23.2658]
[1672777151374,30.80518516,13.029,13.016,57.68]
[1672777151591,87.62,13.028,13.025,0.0051736]
[1672777151793,20.0,13.027,13.025,0.0051736]
[1672777151999,57.63,13.026,13.025,0.0051736]
[1672777155370,87.63,13.026,13.025,0.0051736]
[1672777155804,93.65616836,13.026,13.025,0.0051736]
[1672777161694,113.65616836,13.026,13.025,0.0051736]
[1672777162630,30.0,13.025,13.015,37.0440131]
[1672777162849,57.64,13.024,13.015,0.0040131]
[1672777163044,30.0,13.023,13.015,0.0040131]
[1672777163370,30.0,13.021,13.015,0.0040131]
[1672777163591,30.0,13.019,13.015,0.0040131]
[1672777163787,30.0,13.017,13.015,0.0040131]
[1672777163988,57.68,13.016,13.015,0.0040131]
[1672777164198,77.68,13.016,13.015,0.0040131]
[1672777164830,83.66473428,13.016,13.015,0.0040131]
[1672777167358,25.98473428,13.016,13.015,0.0040131]
[1672777175135,94.46991944,13.016,13.015,0.0040131]
[1672777175347,36.78991944,13.016,13.015,0.0040131]
[1672777176846,25.98473428,13.016,13.015,0.0040131]
[1672777182632,5.98473428,13.016,13.015,0.0040131]
[1672777183890,57.64,13.024,13.015,0.0040131]
[1672777185047,6.01374482,13.023,13.015,0.0040131]
[1672777187666,63.66374482,13.023,13.015,0.0040131]
[1672777189049,6.01374482,13.023,13.015,0.0040131]
[1672777189244,6.01374482,13.023,13.016,57.68]
[1672777189455,6.01374482,13.023,13.015,0.0040131]
[1672777189989,57.63,13.027,13.015,0.0040131]
[1672777190204,20.0,13.026,13.015,23.5097131]
[1672777190820,43.849,13.026,13.015,23.5097131]
[1672777191036,49.87516836,13.026,13.015,23.5097131]
[1672777191778,29.87516836,13.026,13.015,23.5097131]
[1672777191989,6.02616836,13.026,13.016,88.76137784]
[1672777192201,6.02616836,13.026,13.02,6.71]
[1672777192410,6.02616836,13.026,13.017,23.5057]
[1672777192724,20.0,13.025,13.017,23.5057]
[1672777193252,77.63,13.027,13.017,23.5057]
[1672777193448,30.0,13.026,13.017,23.5057]
[1672777193658,20.0,13.025,13.017,23.5057]
[1672777194815,6.01788663,13.024,13.017,23.5057]
[1672777196507,36.01788663,13.024,13.017,23.5057]
[1672777196722,30.0,13.022,13.017,23.5057]
[1672777196913,30.0,13.022,13.016,144.7862]
[1672777198175,93.65788663,13.024,13.016,144.7862]
[1672777204406,63.65788663,13.024,13.016,144.7862]
[1672777205955,6.01788663,13.024,13.016,144.7862]
[1672777221105,6.01788663,13.024,13.016,202.4662]
[1672777221428,6.01788663,13.024,13.016,144.7862]
[1672777226484,6.01788663,13.024,13.017,57.67]
[1672777227839,6.01788663,13.024,13.016,202.4662]
[1672777228991,6.01788663,13.024,13.016,213.54757784]
[1672777229201,6.01788663,13.024,13.017,30.0]
[1672777229411,6.01788663,13.024,13.018,77.67]
[1672777229623,6.01788663,13.024,13.019,30.0]
[1672777229832,23.6554,13.033,13.021,30.0]
[1672777230278,23.6554,13.033,13.02,112.5605]
[1672777230795,6.05099829,13.032,13.021,24.4747]
[1672777234173,6.05099829,13.032,13.022,87.65]
[1672777235434,6.05099829,13.032,13.022,57.65]
[1672777236460,6.05099829,13.032,13.021,82.1247]
[1672777238374,30.62829829,13.032,13.021,82.1247]
[1672777239511,30.62829829,13.032,13.022,368.22758834]
[1672777239939,88.23829829,13.032,13.022,368.22758834]
[1672777240254,30.0,13.031,13.022,368.22758834]
[1672777240469,3.35,13.03,13.022,368.22758834]
[1672777242677,30.0,13.028,13.022,368.22758834]
[1672777242890,20.0,13.027,13.022,368.22758834]
[1672777243084,77.63,13.027,13.022,368.22758834]
[1672777243731,30.0,13.026,13.022,368.22758834]
[1672777244041,20.0,13.025,13.016,119.9565]
[1672777244866,6.01788663,13.024,13.016,119.9565]
[1672777250023,57.65,13.023,13.016,119.9565]
[1672777250980,6.00960236,13.022,13.016,119.9565]
[1672777251932,101.5015,13.025,13.016,119.9565]
[1672777252776,6.01788663,13.024,13.016,119.9565]
[1672777253093,36.01788663,13.024,13.016,119.9565]
[1672777256767,30.0,13.022,13.016,119.9565]
[1672777257803,6.00545927,13.021,13.016,119.9565]
[1672777258640,6.00545927,13.021,13.015,24.5598131]
[1672777260960,53.0423,13.024,13.015,24.5598131]
[1672777261162,57.65,13.023,13.015,24.5598131]
[1672777261582,30.0,13.022,13.015,24.5598131]
[1672777261808,36.00960236,13.022,13.015,24.5598131]
[1672777263605,6.00960236,13.022,13.015,24.5598131]
[1672777264012,36.00960236,13.022,13.015,24.5598131]
[1672777265718,36.00960236,13.022,13.013,24.5461]
[1672777265899,16.78,13.02,13.006,57.72]
[1672777266228,16.78,13.02,13.005,2.4751736]
[1672777266229,30.0,13.018,13.005,2.4751736]
[1672777266555,30.0,13.016,13.005,2.4751736]
[1672777266745,57.68,13.015,13.005,2.4751736]
[1672777266956,30.0,13.014,13.005,2.4751736]
[1672777267178,57.69,13.013,13.005,2.4751736]
[1672777267495,30.0,13.012,13.005,2.4751736]
[1672777267688,77.7,13.011,13.005,2.4751736]
[1672777267894,30.0,13.01,13.005,2.4751736]
[1672777268108,20.0,13.009,13.005,2.4751736]
[1672777268845,30.0,13.008,13.005,0.0051736]
[1672777269054,20.0,13.007,13.005,0.0051736]
[1672777269259,30.0,13.006,13.005,0.0051736]
[1672777269477,50.0,13.006,13.005,0.0051736]
[1672777270858,55.94323648,13.006,13.005,0.0051736]
[1672777271676,30.0,13.005,12.993,57.78]
[1672777271903,30.0,13.005,12.992,108.2482]
[1672777271904,30.0,13.003,12.992,155.6474]
[1672777272628,57.74,13.002,12.992,155.6474]
[1672777272840,30.0,13.001,12.992,155.6474]
[1672777273802,57.74,13.002,12.992,155.6474]
[1672777274004,68.53518516,13.004,12.992,155.6474]
[1672777274216,47.828,13.005,12.993,57.78]
[1672777274427,47.828,13.005,12.996,57.77]
[1672777275047,5.93492926,13.004,12.996,57.77]
[1672777275896,5.93492926,13.004,12.993,57.78]
[1672777277587,5.93492926,13.004,12.996,57.77]
[1672777279885,5.93492926,13.004,12.993,57.78]
[1672777281147,5.93492926,13.004,12.996,57.77]
[1672777281362,5.93492926,13.004,12.993,57.78]
[1672777283156,5.93492926,13.004,12.996,57.77]
[1672777284193,5.93492926,13.004,12.995,44.2497772]
[1672777284194,10.80518516,13.003,12.995,44.2497772]
[1672777284408,30.0,13.003,12.995,44.2497772]
[1672777284930,5.92661949,13.002,12.995,44.2497772]
[1672777286318,16.73180465,13.002,12.995,44.2497772]
[1672777286823,5.92661949,13.002,12.995,44.2497772]
[1672777287872,23.0008,13.004,12.995,44.2497772]
[1672777288084,298.34,13.02,12.996,77.77]
[1672777288294,47.0889,13.015,12.996,77.77]
[1672777288505,10.80518516,13.013,12.996,77.77]
[1672777288715,10.80518516,13.013,12.996,124.1859]
[1672777288937,5.95569252,13.009,12.996,124.1859]
[1672777289788,10.80518516,13.013,12.996,124.1859]
[1672777290943,5.96814281,13.012,12.996,124.1859]
[1672777294396,16.77332797,13.012,12.996,124.1859]
[1672777295659,74.46332797,13.012,12.996,124.1859]
[1672777297367,16.77332797,13.012,12.996,124.1859]
[1672777297668,5.96814281,13.012,12.996,124.1859]
[1672777297877,5.96814281,13.012,13.0,6.71]
[1672777298203,5.96814281,13.012,13.001,57.74]
[1672777302406,30.0,13.01,12.998,108.8155]
[1672777302596,20.0,13.009,12.998,108.8155]
[1672777304300,30.0,13.008,12.998,108.8155]
[1672777304611,20.0,13.007,12.998,108.8155]
[1672777306712,30.0,13.006,12.998,108.8155]
[1672777306924,20.0,13.005,12.998,108.8155]
[1672777310831,5.93492926,13.004,12.998,108.8155]
[1672777311022,16.74011442,13.004,12.998,108.8155]
[1672777311233,40.80518516,13.003,12.998,108.8155]
[1672777311567,10.80518516,13.003,12.995,67.3899772]
[1672777313876,5.93492926,13.004,12.995,67.3899772]
[1672777314401,16.74011442,13.004,12.995,67.3899772]
[1672777314821,5.93492926,13.004,12.995,67.3899772]
[1672777315135,5.93492926,13.004,12.997,30.0]
[1672777315338,5.93492926,13.004,12.998,77.76]
[1672777315976,57.7,13.011,12.998,77.76]
[1672777316202,57.7,13.011,12.998,20.0]
[1672777316392,68.49518516,13.012,12.999,57.75]
[1672777316594,68.49518516,13.012,12.999,174.3327]
[1672777316803,5.95984325,13.01,12.999,174.3327]
[1672777320922,5.95984325,13.01,12.999,171.8327]
[1672777330367,5.95984325,13.01,12.999,182.91407784]
[1672777330572,5.95984325,13.01,13.0,6.67]
[1672777330782,5.95984325,13.01,13.001,57.74]
[1672777331842,24.5585,13.012,13.001,57.74]
[1672777332874,5.96399335,13.011,13.001,57.74]
[1672777333295,28.86729335,13.011,13.001,57.74]
[1672777337107,28.86729335,13.011,13.0,22.8133]
[1672777338162,28.86729335,13.011,13.001,57.74]
[1672777338372,28.86729335,13.011,13.0,80.5633]
[1672777338583,28.86729335,13.011,13.0,87.2233]
[1672777349835,28.86729335,13.011,13.002,30.0]
[1672777350148,28.86729335,13.011,13.003,57.73]
[1672777350543,28.86729335,13.011,13.004,20.0]
[1672777350757,5.96399335,13.011,13.005,87.73]
[1672777350968,5.96399335,13.011,13.006,20.0]
[1672777351179,5.96399335,13.011,13.007,57.72]
[1672777351616,5.46399335,13.011,13.008,20.0]
[1672777352340,5.46399335,13.011,13.009,57.71]
[1672777352967,23.9349,13.02,13.009,57.71]
[1672777353176,23.9349,13.02,13.01,3.35]
[1672777353823,23.9349,13.02,13.009,80.8965]
[1672777354023,23.9349,13.02,13.009,23.1865]
[1672777355609,50.0,13.019,13.009,23.1865]
[1672777355806,107.66,13.019,13.003,23.937]
[1672777356026,59.96648516,13.018,13.003,23.937]
[1672777356234,30.0,13.016,13.003,23.937]
[1672777356446,30.0,13.014,13.003,23.937]
[1672777356649,30.0,13.014,13.002,46.5204]
[1672777357389,23.5858,13.013,13.002,46.5204]
[1672777360872,5.77515246,13.012,13.002,46.5204]
[1672777361421,28.57705246,13.012,13.002,46.5204]
[1672777362871,28.57705246,13.012,13.003,57.73]
[1672777367401,28.57705246,13.012,13.002,104.2604]
[1672777367820,28.57705246,13.012,13.002,46.5204]
[1672777368029,30.0,13.01,13.002,46.5204]
[1672777368972,5.76270216,13.009,13.002,46.5204]
[1672777370127,5.76270216,13.009,13.002,104.2604]
[1672777370749,24.5327,13.011,13.002,104.2604]
[1672777372782,5.7668529,13.01,13.002,104.2604]
[1672777376231,5.7668529,13.01,13.002,46.5204]
[1672777383266,5.7668529,13.01,13.002,104.2604]
[1672777385383,5.7668529,13.01,13.002,46.5204]
[1672777389683,118.51518516,13.009,12.991,57.79]
[1672777389897,167.28998516,13.009,12.991,216.6602]
[1672777390108,10.80518516,13.008,12.991,216.6602]
[1672777390317,102.7038,13.007,12.992,23.9836]
[1672777390533,30.0,13.006,12.993,57.78]
[1672777390724,20.0,13.005,12.993,57.78]
[1672777391367,30.0,13.004,12.993,57.78]
[1672777392093,40.80518516,13.004,12.993,57.78]
[1672777394408,10.80518516,13.004,12.992,23.9836]
[1672777394833,10.80518516,13.004,12.992,81.7636]
[1672777395059,5.73778434,13.003,12.992,81.7636]
[1672777396425,5.73778434,13.003,12.993,22.8815]
[1672777397579,5.73778434,13.003,12.994,57.77]
[1672777397980,5.73778434,13.003,12.993,22.8815]
[1672777399556,5.73778434,13.003,12.994,57.77]
[1672777399994,5.73778434,13.003,12.993,22.8815]
[1672777403042,5.73778434,13.003,12.994,57.77]
[1672777403231,5.73778434,13.003,12.993,80.6615]
[1672777406117,16.5429695,13.003,12.993,22.8815]
[1672777406411,16.5429695,13.003,12.993,80.6615]
[1672777408508,16.5429695,13.003,12.993,22.8815]
[1672777412084,46.5429695,13.003,12.993,22.8815]
[1672777415236,16.5429695,13.003,12.993,22.8815]
[1672777415658,5.73778434,13.003,12.994,57.77]
[1672777417760,5.73778434,13.003,12.993,80.6615]
[1672777419648,16.5429695,13.003,12.993,80.6615]
[1672777419859,5.73778434,13.003,12.993,80.6615]
[1672777421015,16.5429695,13.003,12.993,80.6615]
[1672777423961,46.5429695,13.003,12.993,80.6615]
[1672777425624,46.5429695,13.003,12.993,22.8815]
[1672777428680,90.60574957,13.003,12.993,22.8815]
[1672777430350,3.37,13.0,12.993,22.8815]
[1672777430569,24.5673,13.003,12.996,61.08137784]
[1672777430783,24.5673,13.003,12.998,30.0]
[1672777430996,264.6,13.011,12.999,57.75]
[1672777431191,264.6,13.011,12.999,81.1056]
[1672777432782,264.6,13.011,13.0,33.36]
[1672777432971,264.6,13.011,13.001,57.74]
[1672777435712,264.6,13.011,13.0,84.4656]
[1672777438157,264.6,13.011,13.0,26.7156]
[1672777439284,264.6,13.011,13.001,30.0]
[1672777439496,264.6,13.011,13.002,57.74]
[1672777439723,264.6,13.011,13.003,30.0]
[1672777439943,57.68,13.016,13.004,57.73]
[1672777440151,24.2671,13.022,13.005,50.0]
[1672777440463,57.65,13.021,13.01,3.37]
[1672777440778,24.2671,13.022,13.01,3.37]
[1672777440986,81.9171,13.022,13.01,3.37]
[1672777441394,30.0,13.021,13.009,24.9144]
[1672777441603,57.66,13.02,13.009,24.9144]
[1672777442749,57.65,13.021,13.009,24.9144]
[1672777444440,30.0,13.02,13.009,24.9144]
[1672777444767,57.66,13.019,13.009,24.9144]
[1672777444963,50.0,13.018,13.009,24.9144]
[1672777445173,57.67,13.017,13.009,24.9144]
[1672777445506,30.0,13.015,13.005,116.8324]
[1672777445706,30.0,13.013,13.005,116.8324]
[1672777446534,68.21318995,13.014,13.005,116.8324]
[1672777446962,57.69,13.014,13.005,116.8324]
[1672777447814,22.7153,13.015,13.005,116.8324]
[1672777448009,80.3953,13.015,13.005,116.8324]
[1672777448858,22.7153,13.015,13.005,116.8324]
[1672777449287,57.66,13.02,13.01,3.36]
[1672777449484,165.4993,13.024,13.01,3.36]
[1672777449690,165.4993,13.024,13.011,156.9815]
[1672777449691,91.98398995,13.023,13.011,156.9815]
[1672777449919,81.4608,13.023,13.011,156.9815]
[1672777450447,23.8108,13.022,13.011,156.9815]
[1672777450844,23.8108,13.022,13.012,30.0]
[1672777451071,23.8108,13.022,13.013,57.69]
[1672777451830,23.8108,13.022,13.012,57.69]
[1672777452043,23.8108,13.022,13.011,156.9815]
[1672777452044,23.8108,13.022,13.011,214.6815]
[1672777454559,53.8108,13.022,13.011,214.6815]
[1672777458681,23.8108,13.022,13.011,214.6815]
[1672777464661,81.4608,13.022,13.011,156.9815]
[1672777465189,23.8108,13.022,13.011,156.9815]
[1672777469284,23.8108,13.022,13.011,214.6815]
[1672777470242,34.33398995,13.022,13.011,156.9815]
[1672777471267,30.0,13.021,13.011,156.9815]
[1672777471481,87.65,13.021,13.011,156.9815]
[1672777471801,10.52318995,13.02,13.011,156.9815]
[1672777477064,30.0,13.018,13.003,57.73]
[1672777477260,30.0,13.018,13.001,222.8478]
[1672777477475,78.80798995,13.017,13.001,222.8478]
[1672777477795,40.52318995,13.016,13.001,222.8478]
[1672777478006,20.0,13.015,13.002,48.1277]
[1672777478207,20.0,13.015,13.003,57.73]
[1672777478739,44.4673,13.015,13.003,82.187]
[1672777479060,54.99048995,13.015,13.003,82.187]
[1672777481887,54.99048995,13.015,13.004,30.0]
[1672777482219,54.99048995,13.015,13.005,57.73]
[1672777482437,54.99048995,13.015,13.004,80.8209]
[1672777484542,54.99048995,13.015,13.004,23.0909]
[1672777488099,112.67048995,13.015,13.004,23.0909]
[1672777490756,54.99048995,13.015,13.004,23.0909]
[1672777491071,112.67048995,13.015,13.004,23.0909]
[1672777491912,102.1473,13.015,13.004,23.0909]
[1672777492943,44.4673,13.015,13.004,23.0909]
[1672777495486,44.4673,13.015,13.005,30.0]
[1672777496201,44.4673,13.015,13.004,23.0909]
[1672777501484,44.4673,13.015,13.005,30.0]
[1672777501790,44.4673,13.015,13.006,44.18610304]
[1672777502531,24.4673,13.015,13.006,44.18610304]
[1672777502721,23.6756,13.027,13.01,33.47]
[1672777502928,165.1697,13.025,13.012,30.0]
[1672777503148,165.1697,13.025,13.013,81.5336]
[1672777503476,165.1697,13.025,13.013,270.033198]
[1672777503784,165.1697,13.025,13.014,72.99346239]
[1672777504615,165.1697,13.025,13.013,258.2172303]
[1672777504823,165.1697,13.025,13.013,199.1821]
[1672777505661,165.1697,13.025,13.013,141.4921]
[1672777510301,22.9537,13.024,13.013,141.4921]
[1672777512607,22.9537,13.024,13.014,57.69]
[1672777513780,22.9537,13.024,13.014,68.77137784]
[1672777514185,22.9537,13.024,13.014,57.69]
[1672777515556,22.9537,13.024,13.014,68.77137784]
[1672777517234,22.9537,13.024,13.015,30.0]
[1672777517760,22.9537,13.024,13.015,41.08137784]
[1672777518298,22.9537,13.024,13.014,87.69]
[1672777519123,22.9537,13.024,13.015,30.0]
[1672777519347,2.4751736,13.028,13.016,77.68]
[1672777519556,2.4751736,13.028,13.02,6.68]
[1672777519760,2.4751736,13.028,13.021,57.65]
[1672777520081,2.4751736,13.028,13.022,30.0]
[1672777520277,2.4751736,13.028,13.023,57.65]
[1672777521012,2.4751736,13.028,13.022,57.65]
[1672777521547,2.4751736,13.028,13.021,57.65]
[1672777521983,2.4751736,13.028,13.022,30.0]
[1672777522196,7.36e-05,13.028,13.023,57.65]
[1672777522393,2.4751736,13.038,13.024,43.0553]
[1672777522713,2.4751736,13.038,13.03,6.72]
[1672777523963,9.86451332,13.037,13.023,80.7881]
[1672777524176,20.0,13.036,13.023,103.6553]
[1672777524910,67.4848,13.036,13.023,103.6553]
[1672777525345,67.4848,13.036,13.024,30.0]
[1672777525554,23.6022,13.035,13.025,57.64]
[1672777526291,23.6022,13.035,13.024,57.64]
[1672777526482,23.6022,13.035,13.025,30.0]
[1672777526693,23.6022,13.035,13.024,57.64]
[1672777527130,23.6022,13.035,13.024,68.72137784]
[1672777527342,23.6022,13.035,13.023,46.0053]
[1672777527841,9.83970815,13.034,13.023,46.0053]
[1672777528488,9.83970815,13.034,13.023,22.8672]
[1672777528489,34.24550815,13.034,13.023,22.8672]
[1672777530787,34.24550815,13.034,13.024,57.64]
[1672777531754,34.24550815,13.034,13.023,80.5172]
[1672777532371,34.24550815,13.034,13.023,91.59857784]
[1672777533317,34.24550815,13.034,13.023,80.5172]
[1672777533532,34.24550815,13.034,13.023,22.8672]
[1672777535964,91.84550815,13.034,13.023,22.8672]
[1672777537633,34.24550815,13.034,13.024,30.0]
[1672777539629,34.24550815,13.034,13.024,41.08137784]
[1672777539836,9.83970815,13.034,13.026,30.0]
[1672777540375,9.83970815,13.034,13.026,89.0351303]
[1672777541001,20.0,13.036,13.026,89.0351303]
[1672777541220,20.0,13.037,13.026,59.0351303]
[1672777541933,9.85624619,13.036,13.026,59.0351303]
[1672777542149,20.0,13.035,13.026,59.0351303]
[1672777542359,9.85624619,13.036,13.026,59.0351303]
[1672777542568,9.85624619,13.036,13.03,6.67]
[1672777542880,9.85624619,13.036,13.032,30.0]
[1672777543110,2.4751736,13.038,13.032,30.0]
[1672777543434,2.4751736,13.038,13.033,106.67041337]
[1672777543836,2.4751736,13.038,13.033,164.27041337]
[1672777544049,57.5,13.056,13.034,71.8457296]
[1672777544265,57.5,13.056,13.041,30.0]
[1672777544266,178.4609,13.056,13.041,30.0]
[1672777544578,105.1967,13.055,13.042,57.56]
[1672777544797,105.1967,13.055,13.041,98.65137784]
[1672777544989,48.3053,13.054,13.043,11.08137784]
[1672777545418,48.3053,13.054,13.045,30.0]
[1672777545845,48.3053,13.054,13.046,66.27795585]
[1672777547623,48.3053,13.054,13.047,41.08137784]
[1672777547845,48.3053,13.054,13.046,66.27795585]
[1672777548053,48.3053,13.054,13.044,57.55]
[1672777548904,48.3053,13.054,13.044,123.81755585]
[1672777549936,1.4751736,13.048,13.044,123.81755585]
[1672777552458,1.4751736,13.048,13.045,30.0]
[1672777553515,1.4751736,13.048,13.044,57.55]
[1672777554469,0.4751736,13.048,13.045,30.0]
[1672777554868,0.4751736,13.048,13.045,66.26755585]
[1672777555079,0.4751736,13.048,13.042,57.56]
[1672777555307,0.4751736,13.048,13.04,112.2472]
[1672777556792,0.4751736,13.048,13.041,66.26755585]
[1672777556981,0.4751736,13.048,13.042,30.0]
[1672777557191,0.4751736,13.048,13.041,96.26755585]
[1672777558256,0.4751736,13.048,13.041,66.26755585]
[1672777560659,0.4751736,13.048,13.04,47.9872]
[1672777560867,30.0,13.046,13.026,24.3545]
[1672777561098,77.55,13.045,13.027,30.0]
[1672777561296,77.55,13.045,13.028,57.62]
[1672777561512,77.55,13.045,13.029,30.0]
[1672777561707,47.4237,13.044,13.03,57.61]
[1672777561923,47.4237,13.044,13.032,30.0]
[1672777562669,47.4237,13.044,13.032,41.08137784]
[1672777564248,47.4237,13.044,13.032,30.0]
[1672777566341,0.4751736,13.048,13.033,57.6]
[1672777566537,0.4751736,13.048,13.04,6.67]
[1672777566752,0.4751736,13.048,13.041,57.57]
[1672777566961,0.4751736,13.048,13.042,30.0]
[1672777567594,0.4751736,13.048,13.043,11.08137784]
[1672777567829,0.4751736,13.048,13.041,57.57]
[1672777568028,0.4751736,13.048,13.039,57.58]
[1672777568975,0.4751736,13.048,13.038,49.0169]
[1672777569186,57.54,13.047,13.037,119.64]
[1672777569517,57.54,13.047,13.038,20.0]
[1672777569826,0.4751736,13.048,13.038,77.58]
[1672777570241,0.4751736,13.048,13.038,88.66137784]
[1672777570446,0.4751736,13.048,13.039,30.0]
[1672777570664,0.4751736,13.048,13.04,57.57]
[1672777570876,0.4751736,13.048,13.041,30.0]
[1672777571089,0.4751736,13.048,13.041,41.08137784]
[1672777571298,0.4751736,13.048,13.042,68.64137784]
[1672777571617,0.0051736,13.048,13.043,61.08137784]
[1672777571819,0.0051736,13.048,13.044,57.55]
[1672777572028,0.0051736,13.048,13.046,30.0]
[1672777572349,22.5166,13.06,13.048,30.0]
[1672777572563,221.9588,13.061,13.048,30.0]
[1672777572753,164.4788,13.061,13.049,53.27015585]
[1672777573174,164.4788,13.061,13.05,97.49282909]
[1672777573402,164.4788,13.061,13.051,30.0]
[1672777573615,164.4788,13.061,13.052,57.52]
[1672777573807,48.3955,13.061,13.051,140.79015585]
[1672777574013,48.3955,13.061,13.051,87.52]
[1672777574850,48.3955,13.061,13.051,98.60137784]
[1672777575082,48.3955,13.061,13.051,191.83436278]
[1672777575499,48.3955,13.061,13.051,140.79015585]
[1672777575695,48.3955,13.061,13.051,57.52]
[1672777576344,48.3955,13.061,13.052,30.0]
[1672777578010,48.3955,13.061,13.052,41.08137784]
[1672777578227,57.46,13.065,13.053,57.51]
[1672777578435,57.45,13.067,13.054,30.0]
[1672777579068,57.45,13.067,13.055,20.0]
[1672777579275,57.45,13.067,13.056,30.0]
[1672777579481,57.45,13.067,13.057,20.0]
[1672777580122,57.44,13.069,13.057,20.0]
[1672777580551,57.45,13.067,13.057,20.0]
[1672777580962,57.45,13.067,13.057,53.27015585]
[1672777581170,57.45,13.067,13.053,87.51]
[1672777581382,57.45,13.067,13.054,30.0]
[1672777581383,158.3764,13.066,13.054,30.0]
[1672777581595,25.6123736,13.068,13.054,30.0]
[1672777581596,25.6123736,13.068,13.058,7.62187034]
[1672777581805,2.4751736,13.068,13.059,57.49]
[1672777582124,2.4751736,13.068,13.061,30.0]
[1672777582320,2.4751736,13.068,13.063,30.0]
[1672777582530,2.4751736,13.068,13.065,30.0]
[1672777582736,2.4751736,13.068,13.066,77.46]
[1672777582967,2.4751736,13.068,13.066,112.85957233]
[1672777583181,2.4751736,13.068,13.064,57.46]
[1672777583582,2.4751736,13.068,13.065,30.0]
[1672777583811,2.4751736,13.068,13.065,89.24072422]
[1672777584122,2.4751736,13.068,13.066,77.46]
[1672777584442,2.4751736,13.068,13.064,50.87201304]
[1672777584648,2.4751736,13.068,13.062,57.47]
[1672777584966,2.4751736,13.068,13.063,30.0]
[1672777585161,2.4751736,13.068,13.063,88.57339088]
[1672777585494,2.4751736,13.068,13.065,30.0]
[1672777587991,0.0051736,13.068,13.065,30.0]
[1672777588209,0.0051736,13.068,13.066,77.46]
[1672777588412,0.0051736,13.068,13.067,30.0]
[1672777588627,0.0051736,13.068,13.067,107.45]
[1672777590834,22.7338736,13.077,13.068,30.0]
[1672777591676,45.4454,13.08,13.068,30.0]
[1672777592313,45.4454,13.08,13.068,41.08137784]
[1672777594106,45.4454,13.08,13.068,98.53137784]
[1672777595677,102.8354,13.08,13.068,41.08137784]
[1672777596201,45.4454,13.08,13.068,98.53137784]
[1672777596410,45.4454,13.08,13.07,6.68]
[1672777596626,45.4454,13.08,13.071,87.43]
[1672777596834,45.4454,13.08,13.071,204.5877891]
[1672777597036,45.4454,13.08,13.073,30.0]
[1672777597253,24.3848,13.085,13.073,87.43]
[1672777597574,24.3848,13.085,13.075,30.0]
[1672777597883,70.7887,13.085,13.075,30.0]
[1672777598411,70.7887,13.085,13.075,41.08137784]